[Event "RUS-ch Rapid Women 2021"]
[White "Nasyrova,Ekaterina"]
[Black "Belenkaya,Dina"]
[Site "Sochi"]
[Round "4.6"]
[Annotator "NA"]
[Result "0-1"]
[Date "2021.10.12"]
[WhiteElo "2091"]
[BlackElo "2277"]
[PlyCount "196"]
[TimeControl "5400+30"]

1. d4 {[%emt 1:15:42]} d5 {[%emt 1:15:41]} 2. Nf3 {[%emt 0:0:22]} Nf6 {[%emt 0:0:22]
} 3. c4 {[%emt 0:0:21]} dxc4 {[%emt 0:0:21]} 4. e3 {[%emt 0:0:0]} a6 {[%emt 0:0:22]} 5. a4 {[%emt 0:0:22]} e6 {[%emt 0:0:22]} 6. Bxc4 {[%emt 0:0:23]
} c5 $11 {[%emt 0:0:21]} 7. 0-0 {[%emt 0:0:20]} Nc6 {[%emt 0:0:0]} 8. Qe2 {[%emt 0:0:31]} Qc7 {[%emt 0:0:24]} 9. Rd1 {[%emt 0:0:32]} Bd6 {[%emt 0:0:34]} 10. Nc3 {[%emt 0:0:29]} 0-0 {[%emt 0:0:34]} 11. h3 {[%emt 0:0:22]
} b6 {[%emt 0:0:32]} 12. Bd2 {[%emt 0:0:41]} Bb7 {[%emt 0:0:0]} 13. Rac1 {[%emt 0:0:29]} Qe7 {[%emt 0:0:56]} 14. Be1 {[%emt 0:0:32]} Rfd8 {[%emt 0:0:46]} 15. Ba2 {[%emt 0:1:23]} Rac8 {[%emt 0:3:1]} 16. Bb1 {[%emt 0:1:38]
} cxd4 {[%emt 0:1:43]} 17. Nxd4 {[%emt 0:3:4]} Nb4 {[%emt 0:0:0]} 18. e4 {[%emt 0:0:57]} Bc5 {[%emt 0:5:24]} 19. Nb3 {[%emt 0:0:29]} e5 {[%emt 0:0:56]} 20. Nxc5 {[%emt 0:1:6]} bxc5 {[%emt 0:0:25]} 21. Qe3 {[%emt 0:2:18]
} Rd4 {[%emt 0:2:46]} 22. Ne2 {[%emt 0:0:52]} Rxd1 {[%emt 0:0:0]} 23. Rxd1 {[%emt 0:0:22]} Nc6 {[%emt 0:0:26]} 24. Rc1 {[%emt 0:1:23]} Nd4 {[%emt 0:0:28]} 25. f3 {[%emt 0:0:41]} Nd7 {[%emt 0:0:43]} 26. Ba2 {[%emt 0:1:28]
} Nf8 {[%emt 0:0:41]} 27. Nxd4 {[%emt 0:0:39]} exd4 {[%emt 0:0:0]} 28. Qa3 {[%emt 0:0:26]} Qg5 {[%emt 0:1:16]} 29. Rc2 {[%emt 0:0:33]} h6 {[%emt 0:0:40]} 30. h4 {[%emt 0:0:55]} Qe7 {[%emt 0:0:29]} 31. Bf2 {[%emt 0:0:27]
} Rc7 {[%emt 0:1:59]} 32. b4 {[%emt 0:1:36]} cxb4 {[%emt 0:0:0]} 33. Rxc7 {[%emt 0:0:23]} Qxc7 {[%emt 0:0:20]} 34. Qxb4 {[%emt 0:0:21]} d3 {[%emt 0:0:38]} 35. Qd2 {[%emt 0:1:52]} Qd7 {[%emt 0:0:32]} 36. Bc4 {[%emt 0:0:33]
} Qxa4 {[%emt 0:0:22]} 37. Qxd3 {[%emt 0:0:22]} Qa1+ {[%emt 0:0:0]} 38. Kh2 {[%emt 0:0:21]} Qe5+ {[%emt 0:0:36]} 39. g3 {[%emt 0:0:23]} Qf6 {[%emt 0:0:25]} 40. Kg2 {[%emt 0:0:24]} Qc6 {[%emt 0:0:37]} 41. Ba2 {[%emt 0:4:8]
} Bc8 {[%emt 0:0:30]} 42. Qd8 {[%emt 0:0:29]} Qd7 {[%emt 0:0:0]} 43. Qb6 {[%emt 0:0:30]} Ng6 {[%emt 0:0:28]} 44. Qxg6 {[%emt 0:0:29]} a5 {[%emt 0:0:35]} 45. Qb6 {[%emt 0:0:27]} a4 {[%emt 0:0:21]} 46. Qb4 {[%emt 0:0:0]} Bb7 {[%emt 0:0:26]} 47. Bc4 {[%emt 0:0:32]} Bc6 {[%emt 0:0:23]} 48. Bd5 {[%emt 0:0:38]} Bb5 {[%emt 0:0:36]} 49. Bc5 {[%emt 0:0:33]} Kh7 {[%emt 0:0:21]
} 50. Qd4 {[%emt 0:0:25]} Ba6 {[%emt 0:0:25]} 51. g4 {[%emt 0:0:0]} Qb5 {[%emt 0:0:21]} 52. Kg3 {[%emt 0:0:22]} Qf1 {[%emt 0:0:30]} 53. g5 {[%emt 0:0:41]} Bc8 {[%emt 0:0:37]} 54. gxh6 {[%emt 0:0:33]} Qh3+ {[%emt 0:0:21]
} 55. Kf4 {[%emt 0:0:20]} Qxh4+ {[%emt 0:0:22]} 56. Ke3 {[%emt 0:0:21]
} Qxh6+ {[%emt 0:0:21]} 57. Kd3 {[%emt 0:0:28]} a3 {[%emt 0:0:0]} 58. Qa4 {[%emt 0:0:48]} Qf6 {[%emt 0:0:45]} 59. Qxa3 {[%emt 0:0:33]} Qxf3+ {[%emt 0:0:22]} 60. Kc4 {[%emt 0:0:26]} Qe2+ {[%emt 0:0:24]} 61. Kd4 {[%emt 0:0:27]
} f5 {[%emt 0:0:44]} 62. Qh3+ {[%emt 0:0:24]} Kg6 {[%emt 0:0:0]} 63. Qg3+ {[%emt 0:0:23]} Kh7 {[%emt 0:0:33]} 64. Qh4+ {[%emt 0:0:42]} Kg6 {[%emt 0:0:19]} 65. Qg3+ {[%emt 0:0:24]} Kh7 {[%emt 0:0:23]} 66. Qh3+ {[%emt 0:0:22]
} Kg6 {[%emt 0:0:21]} 67. Qg3+ {[%emt 0:0:42]} Kh7 {[%emt 0:0:0]} 68. Qh4+ {[%emt 0:0:20]} Kg6 {[%emt 0:0:21]} 69. Qd8 {[%emt 0:0:44]} Qf2+ {[%emt 0:0:26]} 70. Kc4 {[%emt 0:0:23]} Ba6+ {[%emt 0:0:22]} 71. Kb4 {[%emt 0:0:28]
} Qd2+ {[%emt 0:0:22]} 72. Ka4 {[%emt 0:0:27]} Qc2+ {[%emt 0:0:0]} 73. Kb4 {[%emt 0:0:28]} Qb1+ {[%emt 0:1:9]} 74. Kc3 {[%emt 0:0:50]} Qc1+ {[%emt 0:0:28]} 75. Kd4 {[%emt 0:0:32]} Qb2+ {[%emt 0:0:29]} 76. Ke3 {[%emt 0:0:23]
} Qc1+ {[%emt 0:1:20]} 77. Kd4 {[%emt 0:0:29]} Qb2+ {[%emt 0:0:0]} 78. Ke3 {[%emt 0:0:22]} Qc1+ {[%emt 0:0:54]} 79. Kd4 {[%emt 0:0:42]} Qb2+ {[%emt 0:0:30]} 80. Ke3 {[%emt 0:0:23]} Qc1+ {[%emt 0:0:25]} 81. Kf3 {[%emt 0:0:35]
} Qf1+ {[%emt 0:0:33]} 82. Bf2 {[%emt 0:0:30]} Qh3+ {[%emt 0:0:0]} 83. Kf4 {[%emt 0:0:22]} Qh2+ {[%emt 0:0:34]} 84. Ke3 {[%emt 0:0:23]} f4+ {[%emt 0:0:24]} 85. Kf3 {[%emt 0:0:30]} Qh3+ {[%emt 0:0:42]} 86. Kxf4 {[%emt 0:0:22]
} Qh2+ {[%emt 0:0:22]} 87. Bg3 {[%emt 0:0:47]} Qd2+ {[%emt 0:0:0]} 88. Ke5 {[%emt 0:0:40]} Qc3+ {[%emt 0:0:20]} 89. Kf4 {[%emt 0:0:22]} Qd2+ {[%emt 0:0:25]} 90. Ke5 {[%emt 0:0:38]} Qc3+ {[%emt 0:0:25]} 91. Kd6 {[%emt 0:0:23]
} Qxg3+ {[%emt 0:0:22]} 92. e5 {[%emt 0:0:21]} Qa3+ {[%emt 0:0:0]} 93. Ke6 {[%emt 0:0:23]} Qh3+ {[%emt 0:0:24]} 94. Kd6 {[%emt 0:0:48]} Qa3+ {[%emt 0:0:21]} 95. Kc6 {[%emt 0:0:31]} Qa4+ {[%emt 0:0:26]} 96. Kc7 {[%emt 0:0:34]
} Qa5+ {[%emt 0:0:23]} 97. Kd7 {[%emt 0:0:24]} Qxd5+ {[%emt 0:0:0]} 98. Kc7 {[%emt 0:0:24]} Qxd8+ {[%emt 0:0:35]} 0-1

[Event "RUS-ch Rapid Women 2021"]
[White "Protopopova,Anastasiya"]
[Black "Shafigullina,Zarina"]
[Site "Sochi"]
[Round "5.1"]
[Annotator "NA"]
[Result "1-0"]
[Date "2021.10.12"]
[WhiteElo "2257"]
[BlackElo "2204"]
[PlyCount "65"]
[TimeControl "5400+30"]

1. d4 {[%emt 1:15:42]} Nf6 {[%emt 1:15:50]} 2. c4 {[%emt 0:0:22]} e6 {[%emt 0:0:0]} 3. Nc3 {[%emt 0:0:21]} Bb4 {[%emt 0:0:21]} 4. f3 {[%emt 0:0:23]} d5 {[%emt 0:0:31]} 5. a3 {[%emt 0:0:25]} Bxc3+ {[%emt 0:0:26]} 6. bxc3 {[%emt 0:0:21]
} 0-0 {[%emt 0:0:23]} 7. cxd5 {[%emt 0:0:36]} exd5 {[%emt 0:0:0]} 8. e3 {[%emt 0:0:24]} Bf5 {[%emt 0:0:43]} 9. Bd3 {[%emt 0:1:36]} Bxd3 {[%emt 0:0:21]
} 10. Qxd3 {[%emt 0:0:21]} c5 {[%emt 0:0:27]} 11. Ne2 {[%emt 0:0:0]} c4 {[%emt 0:0:27]} 12. Qc2 {[%emt 0:0:46]} Re8 {[%emt 0:1:10]} 13. 0-0 {[%emt 0:0:27]} Nc6 {[%emt 0:0:24]} 14. Bd2 {[%emt 0:1:50]} Na5 {[%emt 0:0:31]
} 15. Ng3 {[%emt 0:0:34]} Nb3 {[%emt 0:0:30]} 16. Rae1 {[%emt 0:0:24]
} Qa5 {[%emt 0:2:12]} 17. e4 {[%emt 0:0:46]} Qxa3 {[%emt 0:0:0]} 18. Bg5 {[%emt 0:0:38]} Nd7 {[%emt 0:1:31]} 19. e5 {[%emt 0:3:42]} b5 {[%emt 0:3:16]
} 20. f4 {[%emt 0:2:40]} b4 {[%emt 0:1:2]} 21. f5 {[%emt 0:0:0]} Nf8 {[%emt 0:0:20]} 22. Nh5 {[%emt 0:1:15]} Qa6 {[%emt 0:3:42]} 23. Nxg7 {[%emt 0:3:16]} Kxg7 {[%emt 0:0:44]} 24. Bf6+ {[%emt 0:1:37]} Kg8 {[%emt 0:0:22]
} 25. Qf2 {[%emt 0:0:37]} Ng6 {[%emt 0:2:17]} 26. Qg3 {[%emt 0:0:0]} bxc3 {[%emt 0:1:24]} 27. e6 {[%emt 0:0:55]} Qb7 {[%emt 0:0:48]} 28. fxg6 {[%emt 0:0:39]} fxg6 {[%emt 0:0:27]} 29. e7 {[%emt 0:0:45]} c2 {[%emt 0:0:42]
} 30. Qh3 {[%emt 0:0:49]} Qc6 {[%emt 0:0:49]} 31. Re6 {[%emt 0:0:0]} Qc8 {[%emt 0:1:8]} 32. Qh6 {[%emt 0:0:22]} Kf7 {[%emt 0:0:23]} 33. Rd6 {[%emt 0:0:34]} 1-0

[Event "RUS-ch Rapid Women 2021"]
[White "Belenkaya,Dina"]
[Black "Gvanceladze,Anna"]
[Site "Sochi"]
[Round "5.3"]
[Annotator "NA"]
[Result "1/2-1/2"]
[Date "2021.10.12"]
[WhiteElo "2277"]
[BlackElo "2196"]
[PlyCount "25"]
[TimeControl "5400+30"]

1. e4 {[%emt 1:15:42]} c6 {[%emt 1:15:42]} 2. d4 {[%emt 0:0:22]} d5 {[%emt 0:0:0]} 3. Nc3 {[%emt 0:0:21]} dxe4 {[%emt 0:0:23]} 4. Nxe4 {[%emt 0:0:21]} Bf5 {[%emt 0:0:24]} 5. Ng3 {[%emt 0:0:22]} Bg6 {[%emt 0:0:21]} 6. h4 {[%emt 0:0:23]
} h6 {[%emt 0:0:25]} 7. Nf3 {[%emt 0:0:21]} Nd7 {[%emt 0:0:28]
} 8. h5 {[%emt 0:0:27]} Bh7 {[%emt 0:0:22]} 9. Bd3 {[%emt 0:0:23]} Bxd3 {[%emt 0:0:23]
} 10. Qxd3 {[%emt 0:0:22]} Ngf6 {[%emt 0:0:35]} 11. Bd2 {[%emt 0:0:27]
} e6 {[%emt 0:0:22]} 12. 0-0-0 {[%emt 0:0:33]} Be7 {[%emt 0:0:0]} 13. Ne4 {[%emt 0:0:32]} 1/2-1/2

[Event "RUS-ch Rapid Women 2021"]
[White "Dimitrova,Aleksandra"]
[Black "Kovalevskaya,Ekaterina"]
[Site "Sochi"]
[Round "5.4"]
[Annotator "NA"]
[Result "1/2-1/2"]
[Date "2021.10.12"]
[WhiteElo "2197"]
[BlackElo "2364"]
[PlyCount "29"]
[TimeControl "5400+30"]

1. e4 {[%emt 1:20:55]} c5 {[%emt 1:15:41]} 2. Nf3 {[%emt 0:0:21]} Nc6 {[%emt 0:0:22]
} 3. d4 {[%emt 0:0:23]} cxd4 {[%emt 0:0:25]} 4. Nxd4 {[%emt 0:0:0]} e5 {[%emt 0:0:24]} 5. Nb5 {[%emt 0:0:27]} d6 {[%emt 0:0:23]} 6. a4 {[%emt 0:0:22]
} Be7 {[%emt 0:0:34]} 7. N1c3 {[%emt 0:0:28]} a6 {[%emt 0:0:0]} 8. Na3 {[%emt 0:0:21]} Nf6 {[%emt 0:0:21]} 9. Be2 {[%emt 0:0:57]} Be6 {[%emt 0:0:54]
} 10. Be3 {[%emt 0:0:32]} Rc8 {[%emt 0:3:17]} 11. 0-0 {[%emt 0:0:0]} 0-0 {[%emt 0:1:37]} 12. Nc4 {[%emt 0:3:13]} Nd4 {[%emt 0:2:18]} 13. Bxd4 {[%emt 0:0:26]} Bxc4 {[%emt 0:0:25]} 14. Be3 {[%emt 0:0:49]} Bxe2 {[%emt 0:3:26]
} 15. Qxe2 {[%emt 0:0:37]} 1/2-1/2

[Event "RUS-ch Rapid Women 2021"]
[White "Goltseva,Ekaterina"]
[Black "Semenova,Elena"]
[Site "Sochi"]
[Round "5.5"]
[Annotator "NA"]
[Result "1/2-1/2"]
[Date "2021.10.12"]
[WhiteElo "2304"]
[BlackElo "2233"]
[PlyCount "91"]
[TimeControl "5400+30"]

1. d4 {[%emt 1:15:42]} Nf6 {[%emt 1:15:41]} 2. c4 {[%emt 0:0:23]} e6 {[%emt 0:0:0]} 3. g3 {[%emt 0:0:28]} d5 {[%emt 0:0:22]} 4. Nf3 {[%emt 0:0:25]} Be7 {[%emt 0:0:22]} 5. Bg2 {[%emt 0:0:21]} 0-0 {[%emt 0:0:22]} 6. 0-0 {[%emt 0:0:0]} dxc4 {[%emt 0:0:21]} 7. Qc2 {[%emt 0:0:23]} a6 {[%emt 0:0:22]} 8. a4 {[%emt 0:0:49]} Bd7 {[%emt 0:0:34]} 9. Qxc4 {[%emt 0:0:25]} Bc6 {[%emt 0:0:0]} 10. Nc3 {[%emt 0:1:2]} Nbd7 {[%emt 0:0:55]} 11. Bf4 {[%emt 0:1:17]} h6 {[%emt 0:1:7]} 12. Rfd1 {[%emt 0:1:33]} Bd6 {[%emt 0:1:36]} 13. Qd3 {[%emt 0:3:13]
} Qe7 {[%emt 0:3:58]} 14. e4 {[%emt 0:2:23]} e5 {[%emt 0:0:48]
} 15. dxe5 {[%emt 0:3:19]} Nxe5 {[%emt 0:0:28]} 16. Nxe5 {[%emt 0:0:35]} Bxe5 {[%emt 0:0:20]} 17. Bxe5 {[%emt 0:0:28]} Qxe5 {[%emt 0:0:20]} 18. f4 {[%emt 0:0:26]
} Qh5 {[%emt 0:3:45]} 19. e5 {[%emt 0:1:17]} Bxg2 {[%emt 0:0:0]} 20. Kxg2 {[%emt 0:0:25]} Nh7 {[%emt 0:0:54]} 21. Rd2 {[%emt 0:1:4]} Rfe8 {[%emt 0:1:8]} 22. Rad1 {[%emt 0:2:49]} Nf8 {[%emt 0:0:37]} 23. Nd5 {[%emt 0:1:11]
} Rac8 {[%emt 0:0:32]} 24. Qf3 {[%emt 0:0:37]} Qf5 {[%emt 0:0:0]} 25. Ne3 {[%emt 0:0:31]} Qg6 {[%emt 0:1:36]} 26. Qxb7 {[%emt 0:0:36]} Rb8 {[%emt 0:0:50]} 27. Qd5 {[%emt 0:1:15]} Rb4 {[%emt 0:0:24]} 28. Kh1 {[%emt 0:0:48]
} Reb8 {[%emt 0:1:59]} 29. Qd3 {[%emt 0:0:39]} Qh5 {[%emt 0:0:0]} 30. Nd5 {[%emt 0:0:28]} Rb3 {[%emt 0:0:29]} 31. Qe2 {[%emt 0:0:26]} Qxe2 {[%emt 0:1:5]} 32. Rxe2 {[%emt 0:0:20]} Ne6 {[%emt 0:0:24]} 33. f5 {[%emt 0:0:39]
} Nc5 {[%emt 0:0:43]} 34. Nxc7 {[%emt 0:0:36]} Rxb2 {[%emt 0:0:0]} 35. Rxb2 {[%emt 0:0:31]} Rxb2 {[%emt 0:0:22]} 36. e6 {[%emt 0:0:27]} fxe6 {[%emt 0:0:27]} 37. fxe6 {[%emt 0:0:22]} Re2 {[%emt 0:0:23]} 38. Rd8+ {[%emt 0:0:30]
} Kh7 {[%emt 0:0:22]} 39. Rd6 {[%emt 0:0:30]} Ne4 {[%emt 0:0:0]} 40. Rxa6 {[%emt 0:0:22]} Ng5 {[%emt 0:0:20]} 41. Kg1 {[%emt 0:0:24]} Nf3+ {[%emt 0:0:26]} 42. Kf1 {[%emt 0:0:22]} Rd2 {[%emt 0:0:22]} 43. e7 {[%emt 0:0:58]
} Nxh2+ {[%emt 0:0:24]} 44. Ke1 {[%emt 0:0:23]} Nf3+ {[%emt 0:0:0]} 45. Kf1 {[%emt 0:0:19]} Nh2+ {[%emt 0:0:20]} 46. Ke1 {[%emt 0:0:22]} 1/2-1/2

[Event "RUS-ch Rapid Women 2021"]
[White "Miroshnik,Ekaterina"]
[Black "Potapova,Margarita"]
[Site "Sochi"]
[Round "5.6"]
[Annotator "NA"]
[Result "1/2-1/2"]
[Date "2021.10.12"]
[WhiteElo "2092"]
[BlackElo "2257"]
[PlyCount "54"]
[TimeControl "5400+30"]

1. d4 {[%emt 1:15:51]} Nf6 {[%emt 1:15:41]} 2. Nf3 {[%emt 0:0:23]} e6 {[%emt 0:0:32]
} 3. Bg5 {[%emt 0:0:25]} d5 {[%emt 0:0:23]} 4. e3 {[%emt 0:0:0]} Be7 {[%emt 0:0:48]} 5. Bd3 {[%emt 0:0:24]} 0-0 {[%emt 0:0:48]} 6. 0-0 {[%emt 0:0:21]
} h6 {[%emt 0:0:34]} 7. Bf4 {[%emt 0:0:26]} c5 {[%emt 0:0:47]} 8. c3 {[%emt 0:0:26]} Nc6 {[%emt 0:0:33]} 9. h3 {[%emt 0:0:39]} Bd6 {[%emt 0:0:56]
} 10. dxc5 {[%emt 0:1:21]} Bxc5 {[%emt 0:0:49]} 11. Nbd2 {[%emt 0:0:30]
} Bd6 {[%emt 0:0:25]} 12. Bxd6 {[%emt 0:0:28]} Qxd6 {[%emt 0:0:0]} 13. e4 {[%emt 0:0:31]} Qc7 {[%emt 0:3:57]} 14. Re1 {[%emt 0:1:16]} dxe4 {[%emt 0:1:0]} 15. Nxe4 {[%emt 0:0:23]} Nd5 {[%emt 0:0:22]} 16. Ng3 {[%emt 0:1:29]
} Rd8 {[%emt 0:0:42]} 17. Qc2 {[%emt 0:0:52]} Nf4 {[%emt 0:0:0]} 18. Bf1 {[%emt 0:3:6]} b6 {[%emt 0:0:55]} 19. Ne2 {[%emt 0:1:42]} Bb7 {[%emt 0:1:45]} 20. Nxf4 {[%emt 0:0:23]} Qxf4 {[%emt 0:0:23]} 21. Qc1 {[%emt 0:0:22]
} Qf6 {[%emt 0:0:38]} 22. Qe3 {[%emt 0:0:21]} Ne7 {[%emt 0:0:0]} 23. Nd4 {[%emt 0:1:34]} Nd5 {[%emt 0:1:5]} 24. Qe5 {[%emt 0:0:40]} Qg6 {[%emt 0:1:11]} 25. Rad1 {[%emt 0:0:29]} Nf6 {[%emt 0:1:58]} 26. Nb5 {[%emt 0:3:11]
} Qc2 {[%emt 0:1:56]} 27. Qe2 {[%emt 0:1:35]} Qxe2 {[%emt 0:0:0]} 1/2-1/2

[Event "RUS-ch Rapid Women 2021"]
[White "Tomilova,Elena"]
[Black "Protopopova,Anastasiya"]
[Site "Sochi"]
[Round "6.1"]
[Annotator "NA RC"]
[Result "1-0"]
[Date "2021.10.13"]
[WhiteElo "2256"]
[BlackElo "2257"]
[PlyCount "101"]
[TimeControl "5400+30"]

1. e4 {[%emt 1:15:42]} c6 {[%emt 1:15:49]} 2. c4 {[%emt 0:0:21]} d5 {[%emt 0:0:0]} 3. exd5 {[%emt 0:0:23]} cxd5 {[%emt 0:0:21]} 4. cxd5 {[%emt 0:0:22]} Nf6 {[%emt 0:0:23]} 5. Nc3 {[%emt 0:0:21]} Nxd5 {[%emt 0:0:51]} 6. Nf3 {[%emt 0:0:22]
} Nxc3 {[%emt 0:0:42]} 7. bxc3 {[%emt 0:0:23]} g6 {[%emt 0:0:0]} 8. d4 {[%emt 0:0:21]} Bg7 {[%emt 0:0:22]} 9. Bd3 {[%emt 0:0:23]} 0-0 {[%emt 0:0:28]
} 10. 0-0 {[%emt 0:0:21]} Nc6 {[%emt 0:0:56]} 11. Re1 {[%emt 0:0:0]} Qc7 {[%emt 0:3:44]} 12. Bg5 {[%emt 0:1:6]} Rd8 {[%emt 0:0:59]} 13. Qe2 {[%emt 0:1:56]} Be6 {[%emt 0:0:57]} 14. Rac1 {[%emt 0:2:36]} Rac8 {[%emt 0:0:55]
} 15. Qe3 {[%emt 0:2:37]} Bxa2 {[%emt 0:1:27]} 16. h4 {[%emt 0:0:0]} h5 {[%emt 0:1:31]} 17. Bf4 {[%emt 0:2:41]} Qb6 {[%emt 0:0:54]} 18. Re2 {[%emt 0:3:31]} Bd5 {[%emt 0:2:29]} 19. Ng5 {[%emt 0:1:19]} a5 {[%emt 0:0:0]} 20. Rb1 {[%emt 0:1:0]} Qa7 {[%emt 0:0:43]} 21. Qg3 {[%emt 0:0:25]} a4 {[%emt 0:0:39]} 22. Bc7 {[%emt 0:1:10]} Rd7 {[%emt 0:1:16]} 23. Bb6 {[%emt 0:0:23]
} Qb8 {[%emt 0:0:28]} 24. Qxb8 {[%emt 0:0:35]} Nxb8 {[%emt 0:0:0]} 25. c4 {[%emt 0:1:59]} Bxc4 {[%emt 0:0:33]} 26. Rc2 {[%emt 0:0:28]} Bxd3 {[%emt 0:0:34]} 27. Rxc8+ {[%emt 0:0:23]} Bf8 {[%emt 0:0:21]} 28. Rd1 {[%emt 0:0:34]
} Bc2 {[%emt 0:0:39]} 29. Rxc2 {[%emt 0:0:38]} Nc6 {[%emt 0:0:0]} 30. Ra1 {[%emt 0:0:28]} Nxd4 {[%emt 0:0:27]} 31. Rd2 {[%emt 0:1:4]} e5 {[%emt 0:0:42]} 32. Rxa4 {[%emt 0:0:30]} f6 {[%emt 0:0:31]} 33. Bxd4 {[%emt 0:0:26]
} fxg5 {[%emt 0:0:31]} 34. Be3 {[%emt 0:0:27]} Rxd2 {[%emt 0:0:0]} 35. Bxd2 {[%emt 0:0:21]} gxh4 {[%emt 0:0:21]} 36. Ra8 {[%emt 0:0:35]
} Kf7 {[%emt 0:0:22]} 37. Ra7 {[%emt 0:0:24]} Kf6 {[%emt 0:0:24]} 38. Rxb7 {[%emt 0:0:23]
} g5 {[%emt 0:0:26]} 39. Rb5 {[%emt 0:0:45]} Kf5 {[%emt 0:0:0]} 40. Kf1 {[%emt 0:0:38]} g4 {[%emt 0:0:29]} 41. Bc3 {[%emt 0:0:32]} Bg7 {[%emt 0:0:39]} 42. Ke2 {[%emt 0:0:52]} Bf6 {[%emt 0:0:38]} 43. Rb1 {[%emt 0:0:24]
} Be7 {[%emt 0:0:30]} 44. Bb4 {[%emt 0:0:27]} Bg5 {[%emt 0:0:0]} 45. Bd2 {[%emt 0:0:25]} Be7 {[%emt 0:0:22]} 46. Rb7 {[%emt 0:0:26]} Ke6 {[%emt 0:0:52]} 47. Kd3 {[%emt 0:0:46]} h3 {[%emt 0:0:25]} 48. gxh3 {[%emt 0:0:25]
} gxh3 {[%emt 0:0:21]} 49. Ke4 {[%emt 0:0:31]} Kf6 {[%emt 0:0:0]} 50. Rb3 {[%emt 0:0:34]} Bc5 {[%emt 0:0:26]} 51. Rxh3 {[%emt 0:0:25]} 1-0

[Event "RUS-ch Rapid Women 2021"]
[White "Shafigullina,Zarina"]
[Black "Chernyak,Viktoria"]
[Site "Sochi"]
[Round "6.2"]
[Annotator "NA"]
[Result "1/2-1/2"]
[Date "2021.10.13"]
[WhiteElo "2204"]
[BlackElo "2285"]
[PlyCount "55"]
[TimeControl "5400+30"]

1. d4 {[%emt 1:15:40]} d5 {[%emt 1:15:41]} 2. Nf3 {[%emt 0:0:22]} Nf6 {[%emt 0:0:24]
} 3. g3 {[%emt 0:0:24]} c5 {[%emt 0:0:29]} 4. Bg2 {[%emt 0:0:0]} cxd4 {[%emt 0:1:2]} 5. 0-0 {[%emt 0:0:26]} g6 {[%emt 0:0:21]} 6. Nxd4 {[%emt 0:0:23]} Bg7 {[%emt 0:0:27]} 7. c4 {[%emt 0:0:24]} 0-0 {[%emt 0:0:0]} 8. cxd5 {[%emt 0:0:44]} Nxd5 {[%emt 0:1:6]} 9. Nb5 {[%emt 0:0:29]} a6 {[%emt 0:1:25]} 10. Bxd5 {[%emt 0:0:43]} axb5 {[%emt 0:0:32]} 11. Qb3 {[%emt 0:0:22]
} Nc6 {[%emt 0:1:29]} 12. Be3 {[%emt 0:1:58]} Nd4 {[%emt 0:0:0]} 13. Bxd4 {[%emt 0:0:27]} Bxd4 {[%emt 0:0:22]} 14. Rd1 {[%emt 0:2:4]} Qb6 {[%emt 0:0:20]} 15. e3 {[%emt 0:0:27]} Bg7 {[%emt 0:0:37]} 16. Nc3 {[%emt 0:1:13]
} Bg4 {[%emt 0:1:48]} 17. Rdc1 {[%emt 0:1:7]} Bd7 {[%emt 0:0:0]} 18. a4 {[%emt 0:3:20]} e6 {[%emt 0:1:21]} 19. Bg2 {[%emt 0:2:5]} Ra5 {[%emt 0:4:37]
} 20. Bf1 {[%emt 0:5:3]} Bxc3 {[%emt 0:1:4]} 21. bxc3 {[%emt 0:1:13]
} Rfa8 {[%emt 0:1:3]} 22. Qd1 {[%emt 0:0:24]} Be8 {[%emt 0:0:0]} 23. axb5 {[%emt 0:0:38]} Bxb5 {[%emt 0:0:26]} 24. Rab1 {[%emt 0:0:45]} Qc5 {[%emt 0:0:27]} 25. Bxb5 {[%emt 0:1:10]} Rxb5 {[%emt 0:0:21]} 26. Qd7 {[%emt 0:0:42]
} Rxb1 {[%emt 0:1:3]} 27. Rxb1 {[%emt 0:0:20]} Qxc3 {[%emt 0:0:0]} 28. Qxb7 {[%emt 0:0:38]} 1/2-1/2

[Event "RUS-ch Rapid Women 2021"]
[White "Nasybullina,Alfia"]
[Black "Belenkaya,Dina"]
[Site "Sochi"]
[Round "6.3"]
[Annotator "NA RC"]
[Result "1-0"]
[Date "2021.10.13"]
[WhiteElo "2101"]
[BlackElo "2277"]
[PlyCount "129"]
[TimeControl "5400+30"]

1. Nf3 {[%emt 1:15:43]} d5 {[%emt 1:15:45]} 2. g3 {[%emt 0:0:21]} Bg4 {[%emt 0:0:22]
} 3. Bg2 {[%emt 0:0:22]} Nd7 {[%emt 0:0:33]} 4. 0-0 {[%emt 0:0:0]} c6 {[%emt 0:0:24]} 5. d3 {[%emt 0:0:23]} e6 {[%emt 0:0:26]} 6. Nbd2 {[%emt 0:0:23]} Ngf6 {[%emt 0:0:36]} 7. h3 {[%emt 0:0:30]} Bh5 {[%emt 0:0:0]} 8. e4 {[%emt 0:0:37]} Bc5 {[%emt 0:0:42]} 9. c3 {[%emt 0:1:3]} dxe4 {[%emt 0:0:49]
} 10. dxe4 {[%emt 0:0:30]} Qc7 {[%emt 0:0:30]} 11. Kh1 {[%emt 0:0:48]
} 0-0 {[%emt 0:0:57]} 12. Qc2 {[%emt 0:1:10]} Rfd8 {[%emt 0:0:0]} 13. Nc4 {[%emt 0:2:28]} e5 {[%emt 0:6:57]} 14. Ne3 {[%emt 0:1:53]} Bxf3 {[%emt 0:3:55]} 15. Bxf3 {[%emt 0:0:21]} Bf8 {[%emt 0:0:48]} 16. Nf5 {[%emt 0:2:15]
} Nc5 {[%emt 0:1:3]} 17. Be3 {[%emt 0:1:53]} Ne6 {[%emt 0:0:0]} 18. Rad1 {[%emt 0:0:38]} Bc5 {[%emt 0:0:55]} 19. Bc1 {[%emt 0:0:34]} a5 {[%emt 0:0:45]} 20. a3 {[%emt 0:0:44]} b5 {[%emt 0:0:30]} 21. b4 {[%emt 0:0:0]} Bb6 {[%emt 0:0:32]} 22. Bg2 {[%emt 0:1:26]} c5 {[%emt 0:0:48]} 23. Qe2 {[%emt 0:1:39]} c4 {[%emt 0:0:31]} 24. Ne3 {[%emt 0:0:35]} Bxe3 {[%emt 0:1:25]
} 25. Qxe3 {[%emt 0:1:1]} axb4 {[%emt 0:0:26]} 26. axb4 {[%emt 0:0:23]
} Ra2 {[%emt 0:1:1]} 27. Bf3 {[%emt 0:0:42]} h6 {[%emt 0:0:0]} 28. Rxd8+ {[%emt 0:0:30]} Nxd8 {[%emt 0:0:31]} 29. Rd1 {[%emt 0:0:40]} Nb7 {[%emt 0:0:23]} 30. Bd2 {[%emt 0:0:40]} Nd6 {[%emt 0:0:31]} 31. Bg2 {[%emt 0:1:2]
} Qc6 {[%emt 0:0:28]} 32. f3 {[%emt 0:0:26]} Nh5 {[%emt 0:0:0]} 33. Be1 {[%emt 0:0:22]} f5 {[%emt 0:0:28]} 34. Qc5 {[%emt 0:0:27]} Qxc5 {[%emt 0:0:39]} 35. bxc5 {[%emt 0:0:22]} Ne8 {[%emt 0:0:48]} 36. exf5 {[%emt 0:0:31]
} Ra7 {[%emt 0:0:24]} 37. Kh2 {[%emt 0:1:38]} Nhf6 {[%emt 0:0:0]} 38. Bf2 {[%emt 0:0:31]} Kf7 {[%emt 0:0:37]} 39. Re1 {[%emt 0:0:52]} Ra3 {[%emt 0:0:32]} 40. Rxe5 {[%emt 0:1:10]} Rxc3 {[%emt 0:0:20]} 41. c6 {[%emt 0:0:34]
} g5 {[%emt 0:1:13]} 42. fxg6+ {[%emt 0:0:34]} Kxg6 {[%emt 0:0:0]} 43. Rxb5 {[%emt 0:0:25]} Nc7 {[%emt 0:0:36]} 44. Rb7 {[%emt 0:0:29]} Nfd5 {[%emt 0:0:23]} 45. f4 {[%emt 0:0:29]} Rb3 {[%emt 0:0:26]} 46. Rxb3 {[%emt 0:1:0]
} cxb3 {[%emt 0:0:19]} 47. Be4+ {[%emt 0:0:35]} Kf7 {[%emt 0:0:0]} 48. Bd4 {[%emt 0:0:28]} Ke6 {[%emt 0:0:36]} 49. Kg2 {[%emt 0:0:36]} Kd6 {[%emt 0:0:28]} 50. Be5+ {[%emt 0:0:29]} Kc5 {[%emt 0:0:22]} 51. f5 {[%emt 0:0:31]
} Ne3+ {[%emt 0:1:3]} 52. Kf3 {[%emt 0:0:24]} Ned5 {[%emt 0:0:0]} 53. f6 {[%emt 0:0:32]} Ne6 {[%emt 0:0:23]} 54. h4 {[%emt 0:1:9]} Kxc6 {[%emt 0:0:30]} 55. f7 {[%emt 0:0:33]} Kc5 {[%emt 0:0:26]} 56. Bg7 {[%emt 0:0:40]
} h5 {[%emt 0:0:36]} 57. f8=Q+ {[%emt 0:0:24]} Nxf8 {[%emt 0:0:0]} 58. Bxf8+ {[%emt 0:0:22]} Kc4 {[%emt 0:0:21]} 59. Bxd5+ {[%emt 0:0:0]} Kxd5 {[%emt 0:0:21]} 60. Bg7 {[%emt 0:0:22]} Ke6 {[%emt 0:0:22]} 61. Kf4 {[%emt 0:0:21]} Kf7 {[%emt 0:0:20]} 62. Bb2 {[%emt 0:0:21]} Kg6 {[%emt 0:0:21]
} 63. Ke4 {[%emt 0:0:23]} Kh6 {[%emt 0:0:22]} 64. Kf5 {[%emt 0:0:0]} Kh7 {[%emt 0:0:21]} 65. Ke4 {[%emt 0:0:20]} 1-0